[Event "FIDE Womens Grand Prix-I 2022-23"]
[Site "Nur-Sultan"]
[Date "2022.09.18"]
[Round "1.1"]
[White "Goryachkina, Aleksandra"]
[Black "Shuvalova, Polina"]
[Result "1-0"]
[ECO "C56"]
[WhiteElo "2579"]
[BlackElo "2510"]
[Annotator "ChessBase"]
[PlyCount "71"]
[EventDate "2022.09.15"]
[EventType "tourn"]
[EventCountry "KAZ"]
[SourceTitle "playchess.com"]
[Source "ChessBase"]
[SourceQuality "1"]
[TimeControl "40/5400+30:1800+30"]

1. e4 {[%emt 0:00:10]} e5 {[%emt 0:00:25]} 2. Nf3 {[%emt 0:00:10]} Nc6 {[%emt 0:00:06]} 3. Bc4 {[%emt 0:00:28]} Nf6 {[%emt 0:02:28]} 4. d4 {[%emt 0:01:03]} exd4 {[%emt 0:04:32]} 5. e5 {[%emt 0:00:39]} d5 {[%emt 0:00:18]} 6. Bb5 {[%emt 0:00:25]} Ne4 {[%emt 0:03:14]} 7. Nxd4 {[%emt 0:00:30]} Bd7 {[%emt 0:00:17]} 8. Bxc6 {[%emt 0:01:08]} bxc6 {[%emt 0:00:05]} 9. O-O {[%emt 0:00:43]} Be7 {[%emt 0:03:03]} 10. f3 {[%emt 0:08:04]} Nc5 {[%emt 0:01:00]} 11. Be3 {[%emt 0:04:01]} O-O {[%emt 0:01:10]} 12. Nc3 {[%emt 0:02:55]} a5 {[%emt 0:07:06]} 13. Qd2 {[%emt 0:17:33]} a4 {[%emt 0:00:34]} 14. Rad1 {[%emt 0:05:27]} a3 {[%emt 0:03:35]} 15. b3 {[%emt 0:00:44]} Na6 {[%emt 0:01:14]} 16. Nde2 {[%emt 0:01:36]} Bf5 {[%emt 0:23:18]} 17. Ng3 {[%emt 0:02:41]} Be6 {[%emt 0:02:44]} 18. Nce2 {[%emt 0:06:22]} c5 {[%emt 0:03:42]} 19. c3 {[%emt 0:01:04]} Qd7 {[%emt 0:03:44]} 20. Nh5 {[%emt 0:08:34]} Kh8 {[%emt 0:06:21]} 21. Bg5 {[%emt 0:02:42]} Rad8 {[%emt 0:04:21]} 22. Qc1 {[%emt 0:03:31]} Nb8 {[%emt 0:06:57]} 23. h3 {[%emt 0:09:44]} Nc6 {[%emt 0:06:31]} 24. Bxe7 {[%emt 0:00:56]} Qxe7 {[%emt 0:01:45]} 25. f4 {[%emt 0:00:51]} Bc8 {[%emt 0:11:21]} 26. Qxa3 {[%emt 0:07:39]} f6 {[%emt 0:00:59]} 27. exf6 {[%emt 0:01:02]} gxf6 {[%emt 0:00:03]} 28. Neg3 {[%emt 0:00:43]} Qe3+ {[%emt 0:02:27]} 29. Kh2 {[%emt 0:00:30]} Qxc3 {[%emt 0:00:42]} 30. Rc1 {[%emt 0:01:06]} Qb4 {[%emt 0:00:36]} 31. Qxb4 {[%emt 0:00:53]} Nxb4 {[%emt 0:00:05]} 32. Rxc5 {[%emt 0:00:07]} Nxa2 {[%emt 0:01:12]} 33. Rxc7 {[%emt 0:00:01]} d4 {[%emt 0:00:32]} 34. Ra1 {[%emt 0:01:56]} d3 {[%emt 0:00:28]} 35. Rxa2 {[%emt 0:00:55]} d2 {[%emt 0:00:07]} 36. Raa7 {[%emt 0:00:49]} 1-0

[Event "FIDE Womens Grand Prix-I 2022-23"]
[Site "Nur-Sultan"]
[Date "2022.09.18"]
[Round "1.2"]
[White "Lagno, Kateryna"]
[Black "Vaishali, Rameshbabu"]
[Result "1/2-1/2"]
[ECO "B34"]
[WhiteElo "2547"]
[BlackElo "2449"]
[Annotator "ChessBase"]
[PlyCount "62"]
[EventDate "2022.09.15"]
[EventType "tourn"]
[EventCountry "KAZ"]
[SourceTitle "playchess.com"]
[Source "ChessBase"]
[SourceQuality "1"]
[TimeControl "40/5400+30:1800+30"]

1. e4 {[%emt 0:00:02]} c5 {[%emt 0:00:35]} 2. Nf3 {[%emt 0:00:23]} Nc6 {[%emt 0:00:08]} 3. Nc3 {[%emt 0:00:21]} g6 {[%emt 0:00:45]} 4. d4 {[%emt 0:12:01]} cxd4 {[%emt 0:00:06]} 5. Nxd4 {[%emt 0:00:03]} Bg7 {[%emt 0:00:05]} 6. Be3 {[%emt 0:00:36]} Nf6 {[%emt 0:00:10]} 7. Be2 {[%emt 0:02:06]} O-O {[%emt 0:01:09]} 8. O-O {[%emt 0:02:30]} d5 {[%emt 0:04:03]} 9. exd5 {[%emt 0:01:01]} Nxd5 {[%emt 0:00:20]} 10. Nxd5 {[%emt 0:00:58]} Nxd4 {[%emt 0:01:24]} 11. Bxd4 {[%emt 0:14:29]} Qxd5 {[%emt 0:00:12]} 12. Bxg7 {[%emt 0:00:13]} Qxd1 {[%emt 0:00:06]} 13. Raxd1 {[%emt 0:03:12]} Kxg7 {[%emt 0:00:03]} 14. Bf3 {[%emt 0:09:42]} Be6 {[%emt 0:06:24]} 15. Bd5 {[%emt 0:02:21]} Bxd5 {[%emt 0:04:18]} 16. Rxd5 {[%emt 0:00:11]} Rfd8 {[%emt 0:00:10]} 17. Rfd1 {[%emt 0:00:08]} Rxd5 {[%emt 0:00:18]} 18. Rxd5 {[%emt 0:00:04]} Rc8 {[%emt 0:00:10]} 19. c3 {[%emt 0:00:15]} Rc7 {[%emt 0:07:19]} 20. f4 {[%emt 0:00:32]} e6 {[%emt 0:06:00]} 21. Rd4 {[%emt 0:03:48]} Kf6 {[%emt 0:00:44]} 22. Kf2 {[%emt 0:00:14]} e5 {[%emt 0:04:04]} 23. fxe5+ {[%emt 0:10:01]} Kxe5 {[%emt 0:02:17]} 24. Ke3 {[%emt 0:00:19]} f5 {[%emt 0:00:53]} 25. c4 {[%emt 0:01:38]} Re7 {[%emt 0:06:03]} 26. Rd5+ {[%emt 0:08:24]} Kf6+ {[%emt 0:00:39]} 27. Kf3 {[%emt 0:00:30]} g5 {[%emt 0:03:13]} 28. Rd6+ {[%emt 0:01:34]} Ke5 {[%emt 0:00:34]} 29. Rd5+ {[%emt 0:00:07]} Kf6 {[%emt 0:00:14]} 30. Rd6+ {[%emt 0:00:04]} Ke5 {[%emt 0:00:14]} 31. Rd5+ {[%emt 0:00:04]} Kf6 {[%emt 0:00:04]} 1/2-1/2

[Event "FIDE Womens Grand Prix-I 2022-23"]
[Site "Nur-Sultan"]
[Date "2022.09.18"]
[Round "1.3"]
[White "Kashlinskaya, Alina"]
[Black "Kosteniuk, Alexandra"]
[Result "1/2-1/2"]
[ECO "D11"]
[WhiteElo "2491"]
[BlackElo "2521"]
[Annotator "ChessBase"]
[PlyCount "177"]
[EventDate "2022.09.15"]
[EventType "tourn"]
[EventCountry "KAZ"]
[SourceTitle "playchess.com"]
[Source "ChessBase"]
[SourceQuality "1"]
[TimeControl "40/5400+30:1800+30"]

1. d4 {[%emt 0:00:04]} d5 {[%emt 0:00:05]} 2. c4 {[%emt 0:00:11]} c6 {[%emt 0:00:04]} 3. Nf3 {[%emt 0:00:29]} Nf6 {[%emt 0:00:07]} 4. Nbd2 {[%emt 0:06:58]} g6 {[%emt 0:03:29]} 5. b3 {[%emt 0:00:47]} Bg7 {[%emt 0:00:36]} 6. Bb2 {[%emt 0:00:15]} Ne4 {[%emt 0:05:31]} 7. e3 {[%emt 0:02:36]} O-O {[%emt 0:15:12]} 8. Be2 {[%emt 0:06:30]} Qa5 {[%emt 0:07:29]} 9. Qc1 {[%emt 0:12:32]} Nd7 {[%emt 0:10:38]} 10. O-O {[%emt 0:02:38]} Ndf6 {[%emt 0:00:15]} 11. a3 {[%emt 0:06:40]} Bg4 {[%emt 0:04:12]} 12. b4 {[%emt 0:01:22]} Qc7 {[%emt 0:03:26]} 13. cxd5 {[%emt 0:07:49]} Nxd2 {[%emt 0:00:20]} 14. Qxd2 {[%emt 0:00:06]} cxd5 {[%emt 0:01:00]} 15. Rfc1 {[%emt 0:00:08]} Qd6 {[%emt 0:01:34]} 16. a4 {[%emt 0:01:20]} Ne4 {[%emt 0:00:57]} 17. Qe1 {[%emt 0:00:09]} Rfc8 {[%emt 0:02:47]} 18. h3 {[%emt 0:02:51]} Be6 {[%emt 0:02:46]} 19. b5 {[%emt 0:01:54]} Rxc1 {[%emt 0:02:24]} 20. Rxc1 {[%emt 0:03:48]} a6 {[%emt 0:01:03]} 21. bxa6 {[%emt 0:07:34]} bxa6 {[%emt 0:00:24]} 22. Ne5 {[%emt 0:00:11]} Rb8 {[%emt 0:13:05]} 23. Rc6 {[%emt 0:02:02]} Qb4 {[%emt 0:00:22]} 24. Qxb4 {[%emt 0:00:30]} Rxb4 {[%emt 0:00:04]} 25. Ba3 {[%emt 0:00:17]} Rxa4 {[%emt 0:01:28]} 26. Rxa6 {[%emt 0:00:26]} Rxa6 {[%emt 0:00:05]} 27. Bxa6 {[%emt 0:00:05]} Kf8 {[%emt 0:08:02]} 28. Nc6 {[%emt 0:03:35]} Bf6 {[%emt 0:01:30]} 29. Bb7 {[%emt 0:05:33]} Bg5 {[%emt 0:11:42]} 30. Nd8 {[%emt 0:01:28]} Ke8 {[%emt 0:00:40]} 31. Nxe6 {[%emt 0:00:34]} fxe6 {[%emt 0:00:01]} 32. Bc8 {[%emt 0:03:35]} Kf7 {[%emt 0:00:20]} 33. Bb4 {[%emt 0:06:34]} h5 {[%emt 0:01:13]} 34. Kf1 {[%emt 0:00:40]} Bf6 {[%emt 0:01:16]} 35. Bb7 {[%emt 0:02:24]} Nd6 {[%emt 0:02:57]} 36. Bc6 {[%emt 0:00:36]} Nc4 {[%emt 0:00:35]} 37. Ke2 {[%emt 0:00:23]} Nd6 {[%emt 0:00:28]} 38. Kd3 {[%emt 0:06:39]} Nf5 {[%emt 0:00:26]} 39. g4 {[%emt 0:05:45]} hxg4 {[%emt 0:00:29]} 40. hxg4 {[%emt 0:00:02]} Nd6 {[%emt 0:00:15]} 41. f3 {[%emt 0:31:19]} Kf8 {[%emt 0:18:14]} 42. Be1 {[%emt 0:00:00]} Kf7 {[%emt 0:04:34]} 43. Bg3 {[%emt 0:00:00]} Kf8 {[%emt 0:02:37]} 44. Kc3 {[%emt 0:00:00]} Nf7 {[%emt 0:01:45]} 45. Kd3 {[%emt 0:00:00]} Ng5 {[%emt 0:01:18]} 46. Ke2 {[%emt 0:00:00]} Kf7 {[%emt 0:00:13]} 47. Bc7 {[%emt 0:00:00]} Nh7 {[%emt 0:00:39]} 48. Bg3 {[%emt 0:00:00]} Ng5 {[%emt 0:00:14]} 49. Kf2 {[%emt 0:00:00]} Kf8 {[%emt 0:01:00]} 50. Bd7 {[%emt 0:00:00]} Kf7 {[%emt 0:00:05]} 51. Kg2 {[%emt 0:00:00]} Bg7 {[%emt 0:00:08]} 52. Bf4 {[%emt 0:00:00]} Bf6 {[%emt 0:00:36]} 53. Bc8 {[%emt 0:00:00]} Nh7 {[%emt 0:00:51]} 54. Bg3 {[%emt 0:00:00]} Nf8 {[%emt 0:01:03]} 55. Kh3 {[%emt 0:00:00]} g5 {[%emt 0:00:32]} 56. Kg2 {[%emt 0:00:00]} Ke8 {[%emt 0:01:36]} 57. Bc7 {[%emt 0:00:00]} Kf7 {[%emt 0:00:56]} 58. Bb7 {[%emt 0:00:00]} Ng6 {[%emt 0:00:21]} 59. Kf2 {[%emt 0:00:16]} Bg7 {[%emt 0:00:17]} 60. Bc6 {[%emt 0:00:15]} Bf6 {[%emt 0:00:25]} 61. Ke2 {[%emt 0:00:08]} Bg7 {[%emt 0:00:08]} 62. Bg3 {[%emt 0:01:00]} Bf6 {[%emt 0:00:05]} 63. Kd3 {[%emt 0:03:20]} Bg7 {[%emt 0:00:33]} 64. f4 {[%emt 0:01:51]} Bh6 {[%emt 0:03:49]} 65. f5 {[%emt 0:00:21]} Nf8 {[%emt 0:00:24]} 66. fxe6+ {[%emt 0:02:45]} Kxe6 {[%emt 0:00:05]} 67. e4 {[%emt 0:03:28]} dxe4+ {[%emt 0:00:04]} 68. Kxe4 {[%emt 0:00:02]} Kf7 {[%emt 0:00:06]} 69. d5 {[%emt 0:00:17]} Ng6 {[%emt 0:01:03]} 70. Be1 {[%emt 0:00:43]} Bg7 {[%emt 0:00:14]} 71. Bd7 {[%emt 0:00:32]} Bf6 {[%emt 0:00:17]} 72. Bd2 {[%emt 0:00:30]} Nf4 {[%emt 0:01:14]} 73. Bb5 {[%emt 0:00:28]} Ng6 {[%emt 0:00:10]} 74. Ba4 {[%emt 0:00:35]} Ne5 {[%emt 0:01:16]} 75. Kf5 {[%emt 0:01:12]} Nf3 {[%emt 0:00:38]} 76. Be3 {[%emt 0:00:06]} Nh4+ {[%emt 0:00:36]} 77. Ke4 {[%emt 0:00:01]} Ng2 {[%emt 0:00:10]} 78. Bd2 {[%emt 0:00:23]} Nf4 {[%emt 0:00:21]} 79. Bb3 {[%emt 0:00:09]} Kg6 {[%emt 0:00:09]} 80. Bb4 {[%emt 0:00:44]} Ne2 {[%emt 0:00:31]} 81. Bc4 {[%emt 0:00:27]} Nf4 {[%emt 0:00:44]} 82. Bf1 {[%emt 0:00:15]} Kf7 {[%emt 0:00:07]} 83. Bb5 {[%emt 0:00:13]} Ng2 {[%emt 0:01:10]} 84. Bc4 {[%emt 0:01:43]} Kg6 {[%emt 0:00:17]} 85. Ba3 {[%emt 0:00:48]} Kg7 {[%emt 0:00:34]} 86. Bc5 {[%emt 0:00:33]} Kg6 {[%emt 0:00:11]} 87. d6 {[%emt 0:00:36]} exd6 {[%emt 0:00:04]} 88. Bxd6 {[%emt 0:00:03]} Nf4 {[%emt 0:00:17]} 89. Bxf4 {[%emt 0:00:12]} 1/2-1/2

[Event "FIDE Womens Grand Prix-I 2022-23"]
[Site "Nur-Sultan"]
[Date "2022.09.18"]
[Round "1.4"]
[White "Assaubayeva, Bibisara"]
[Black "Abdumalik, Zhansaya"]
[Result "1/2-1/2"]
[ECO "E04"]
[WhiteElo "2443"]
[BlackElo "2503"]
[Annotator "ChessBase"]
[PlyCount "66"]
[EventDate "2022.09.15"]
[EventType "tourn"]
[EventCountry "KAZ"]
[SourceTitle "playchess.com"]
[Source "ChessBase"]
[SourceQuality "1"]
[TimeControl "40/5400+30:1800+30"]

1. d4 {[%emt 0:00:03]} Nf6 {[%emt 0:00:17]} 2. c4 {[%emt 0:00:07]} e6 {[%emt 0:00:05]} 3. Nf3 {[%emt 0:00:05]} d5 {[%emt 0:00:38]} 4. Nc3 {[%emt 0:00:06]} c6 {[%emt 0:00:06]} 5. g3 {[%emt 0:00:20]} dxc4 {[%emt 0:01:32]} 6. Bg2 {[%emt 0:00:06]} b5 {[%emt 0:00:06]} 7. O-O {[%emt 0:00:04]} Bb7 {[%emt 0:02:08]} 8. e4 {[%emt 0:01:17]} Be7 {[%emt 0:02:29]} 9. Qc2 {[%emt 0:10:44]} Na6 {[%emt 0:07:29]} 10. a3 {[%emt 0:04:18]} h6 {[%emt 0:02:34]} 11. Be3 {[%emt 0:10:48]} Rc8 {[%emt 0:04:32]} 12. Rad1 {[%emt 0:03:14]} Ng4 {[%emt 0:12:52]} 13. Bf4 {[%emt 0:03:17]} Nf6 {[%emt 0:01:47]} 14. Ne5 {[%emt 0:05:01]} Qb6 {[%emt 0:04:26]} 15. Be3 {[%emt 0:02:20]} c5 {[%emt 0:07:17]} 16. d5 {[%emt 0:02:48]} Bd6 {[%emt 0:04:17]} 17. Bf4 {[%emt 0:11:27]} Bb8 {[%emt 0:08:18]} 18. dxe6 {[%emt 0:19:27]} Qxe6 {[%emt 0:09:43]} 19. Nxb5 {[%emt 0:00:17]} O-O {[%emt 0:03:36]} 20. Nxc4 {[%emt 0:01:17]} Bxf4 {[%emt 0:04:23]} 21. gxf4 {[%emt 0:00:01]} Bxe4 {[%emt 0:02:30]} 22. Bxe4 {[%emt 0:00:06]} Nxe4 {[%emt 0:00:03]} 23. f3 {[%emt 0:01:51]} Qg6+ {[%emt 0:01:45]} 24. Qg2 {[%emt 0:00:07]} Nf6 {[%emt 0:02:43]} 25. Qxg6 {[%emt 0:05:17]} fxg6 {[%emt 0:00:02]} 26. Nxa7 {[%emt 0:00:12]} Rce8 {[%emt 0:02:34]} 27. Nb5 {[%emt 0:03:54]} Nh5 {[%emt 0:01:32]} 28. Rd6 {[%emt 0:03:20]} Nb8 {[%emt 0:01:35]} 29. Nc7 {[%emt 0:02:49]} Re2 {[%emt 0:01:38]} 30. Ne6 {[%emt 0:00:39]} Re8 {[%emt 0:00:44]} 31. Nc7 {[%emt 0:02:33]} Rf8 {[%emt 0:00:18]} 32. Ne6 {[%emt 0:01:31]} Re8 {[%emt 0:00:06]} 33. Nc7 {[%emt 0:01:02]} Rf8 {[%emt 0:00:05]} 1/2-1/2

[Event "FIDE Womens Grand Prix-I 2022-23"]
[Site "Nur-Sultan"]
[Date "2022.09.18"]
[Round "1.5"]
[White "Tan, Zhongyi"]
[Black "Zhu, Jiner"]
[Result "1/2-1/2"]
[ECO "E46"]
[WhiteElo "2525"]
[BlackElo "2464"]
[Annotator "ChessBase"]
[PlyCount "83"]
[EventDate "2022.09.15"]
[EventType "tourn"]
[EventCountry "KAZ"]
[SourceTitle "playchess.com"]
[Source "ChessBase"]
[SourceQuality "1"]
[TimeControl "40/5400+30:1800+30"]

1. d4 {[%emt 0:00:05]} Nf6 {[%emt 0:00:16]} 2. c4 {[%emt 0:00:11]} e6 {[%emt 0:00:05]} 3. Nc3 {[%emt 0:00:09]} Bb4 {[%emt 0:00:13]} 4. e3 {[%emt 0:00:06]} O-O {[%emt 0:00:22]} 5. Nge2 {[%emt 0:00:11]} c6 {[%emt 0:00:56]} 6. a3 {[%emt 0:01:31]} Ba5 {[%emt 0:00:09]} 7. c5 {[%emt 0:01:39]} d5 {[%emt 0:08:06]} 8. cxd6 {[%emt 0:10:57]} Qxd6 {[%emt 0:00:08]} 9. b4 {[%emt 0:00:26]} Bb6 {[%emt 0:02:14]} 10. g3 {[%emt 0:05:27]} a5 {[%emt 0:03:38]} 11. bxa5 {[%emt 0:03:25]} Bxa5 {[%emt 0:01:29]} 12. Bg2 {[%emt 0:00:10]} e5 {[%emt 0:02:22]} 13. O-O {[%emt 0:03:08]} exd4 {[%emt 0:02:48]} 14. exd4 {[%emt 0:00:54]} Be6 {[%emt 0:13:02]} 15. Qc2 {[%emt 0:05:08]} Nbd7 {[%emt 0:01:25]} 16. Bf4 {[%emt 0:10:45]} Qe7 {[%emt 0:00:10]} 17. Rfb1 {[%emt 0:00:35]} Nb6 {[%emt 0:15:43]} 18. Bg5 {[%emt 0:09:39]} h6 {[%emt 0:00:20]} 19. Bxf6 {[%emt 0:00:19]} Qxf6 {[%emt 0:00:08]} 20. Ne4 {[%emt 0:00:04]} Qf5 {[%emt 0:00:21]} 21. Nf4 {[%emt 0:03:40]} Bd5 {[%emt 0:01:14]} 22. Qd3 {[%emt 0:09:40]} Rfd8 {[%emt 0:07:45]} 23. Rc1 {[%emt 0:16:23]} Bxe4 {[%emt 0:05:12]} 24. Bxe4 {[%emt 0:00:04]} Qf6 {[%emt 0:03:16]} 25. Ne2 {[%emt 0:05:21]} Nc8 {[%emt 0:01:39]} 26. Qf3 {[%emt 0:01:34]} Qxf3 {[%emt 0:01:11]} 27. Bxf3 {[%emt 0:00:04]} Bb6 {[%emt 0:01:12]} 28. Rd1 {[%emt 0:01:11]} Nd6 {[%emt 0:02:41]} 29. a4 {[%emt 0:03:51]} Ra5 {[%emt 0:01:21]} 30. d5 {[%emt 0:00:19]} c5 {[%emt 0:02:02]} 31. Rab1 {[%emt 0:00:32]} Ba7 {[%emt 0:00:18]} 32. Nc3 {[%emt 0:00:11]} c4 {[%emt 0:00:47]} 33. Rd2 {[%emt 0:01:24]} Bc5 {[%emt 0:01:10]} 34. Kg2 {[%emt 0:03:18]} g5 {[%emt 0:02:08]} 35. Be2 {[%emt 0:02:43]} b6 {[%emt 0:02:12]} 36. Rc2 {[%emt 0:00:30]} Bd4 {[%emt 0:00:35]} 37. Rb4 {[%emt 0:00:06]} Kg7 {[%emt 0:05:33]} 38. Nb5 {[%emt 0:00:30]} Nxb5 {[%emt 0:00:23]} 39. axb5 {[%emt 0:00:09]} Rxd5 {[%emt 0:00:09]} 40. Rbxc4 {[%emt 0:00:36]} Bc5 {[%emt 0:00:42]} 41. Re4 {[%emt 0:30:32]} Ra7 {[%emt 0:33:17]} 42. h4 {[%emt 0:00:26]} 1/2-1/2

[Event "FIDE Womens Grand Prix-I 2022-23"]
[Site "Nur-Sultan"]
[Date "2022.09.18"]
[Round "1.6"]
[White "Wagner, Dinara"]
[Black "Paehtz, Elisabeth"]
[Result "0-1"]
[ECO "E94"]
[WhiteElo "2358"]
[BlackElo "2477"]
[Annotator "ChessBase"]
[PlyCount "84"]
[EventDate "2022.09.15"]
[EventType "tourn"]
[EventCountry "KAZ"]
[SourceTitle "playchess.com"]
[Source "ChessBase"]
[SourceQuality "1"]
[TimeControl "40/5400+30:1800+30"]

1. d4 {[%emt 0:00:03]} Nf6 {[%emt 0:00:04]} 2. c4 {[%emt 0:00:11]} g6 {[%emt 0:00:03]} 3. Nc3 {[%emt 0:00:17]} Bg7 {[%emt 0:00:04]} 4. e4 {[%emt 0:00:11]} d6 {[%emt 0:00:03]} 5. Nf3 {[%emt 0:00:40]} O-O {[%emt 0:00:06]} 6. Be2 {[%emt 0:00:07]} e5 {[%emt 0:00:03]} 7. O-O {[%emt 0:00:21]} Bg4 {[%emt 0:00:05]} 8. Be3 {[%emt 0:14:15]} Bxf3 {[%emt 0:00:11]} 9. Bxf3 {[%emt 0:00:07]} exd4 {[%emt 0:00:07]} 10. Bxd4 {[%emt 0:00:08]} Nc6 {[%emt 0:00:04]} 11. Be3 {[%emt 0:00:24]} Re8 {[%emt 0:00:14]} 12. Qc2 {[%emt 0:12:05]} Nd7 {[%emt 0:00:11]} 13. Rad1 {[%emt 0:00:26]} Bxc3 {[%emt 0:01:47]} 14. Qxc3 {[%emt 0:01:21]} Qf6 {[%emt 0:00:04]} 15. Qd2 {[%emt 0:27:52]} Nc5 {[%emt 0:03:47]} 16. Bg5 {[%emt 0:01:54]} Qe6 {[%emt 0:02:55]} 17. Qc2 {[%emt 0:28:01]} Qe5 {[%emt 0:34:24]} 18. Be3 {[%emt 0:09:15]} Nxe4 {[%emt 0:05:52]} 19. Rfe1 {[%emt 0:00:16]} Nc5 {[%emt 0:15:26]} 20. Re2 {[%emt 0:00:34]} Ne6 {[%emt 0:04:37]} 21. Qa4 {[%emt 0:00:58]} Nc5 {[%emt 0:05:06]} 22. Qc2 {[%emt 0:00:05]} a5 {[%emt 0:03:15]} 23. h3 {[%emt 0:01:50]} Ne6 {[%emt 0:05:14]} 24. Qb3 {[%emt 0:00:35]} Reb8 {[%emt 0:04:26]} 25. Kf1 {[%emt 0:00:31]} Qh2 {[%emt 0:00:46]} 26. Ke1 {[%emt 0:00:31]} Ne5 {[%emt 0:04:28]} 27. Bd5 {[%emt 0:00:27]} a4 {[%emt 0:02:10]} 28. Qc3 {[%emt 0:00:27]} Re8 {[%emt 0:01:09]} 29. Bxb7 {[%emt 0:00:33]} Rab8 {[%emt 0:00:11]} 30. Bd5 {[%emt 0:00:05]} Nf4 {[%emt 0:02:24]} 31. Bxf4 {[%emt 0:00:08]} Qxf4 {[%emt 0:00:04]} 32. g3 {[%emt 0:00:58]} Qf5 {[%emt 0:00:27]} 33. Bg2 {[%emt 0:00:36]} Nd7 {[%emt 0:03:17]} 34. Rxe8+ {[%emt 0:00:27]} Rxe8+ {[%emt 0:00:04]} 35. Kf1 {[%emt 0:00:02]} Nc5 {[%emt 0:00:16]} 36. Kg1 {[%emt 0:01:15]} Re2 {[%emt 0:01:06]} 37. Qd4 {[%emt 0:00:33]} Ne6 {[%emt 0:00:57]} 38. Qa7 {[%emt 0:00:03]} Rxb2 {[%emt 0:01:00]} 39. Rf1 {[%emt 0:00:54]} Rxa2 {[%emt 0:00:33]} 40. Bd5 {[%emt 0:00:10]} Qxh3 {[%emt 0:02:57]} 41. c5 {[%emt 0:04:59]} Nd4 {[%emt 0:04:31]} 42. Bxf7+ {[%emt 0:02:58]} Kg7 {[%emt 0:01:35]} 0-1

[Event "FIDE Womens Grand Prix-I 2022-23"]
[Site "Nur-Sultan"]
[Date "2022.09.27"]
[Round "9.1"]
[White "Tan, Zhongyi"]
[Black "Shuvalova, Polina"]
[Result "0-1"]
[ECO "E51"]
[WhiteElo "2525"]
[BlackElo "2510"]
[Annotator "TA"]
[PlyCount "96"]
[EventDate "2022.09.15"]
[EventType "tourn"]
[EventCountry "KAZ"]
[SourceTitle "playchess.com"]
[Source "ChessBase"]
[SourceQuality "1"]
[TimeControl "40/5400+30:1800+30"]

{[%evp 11,96,0,7,7,9,0,0,0,0,0,0,0,0,0,0,0,0,-1,-2,0,-12,-30,2,1,7,0,0,0,11,-5,8,0,0,0,0,0,0,0,0,0,7,0,17,0,0,0,15,16,13,0,8,-110,0,-25,156,-89,-20,-90,-89,-88,-87,-88,-91,-91,-80,-205,-194,-654,-649,-595,-256,-897,-847,-949,-851,-866,-808,-2003,-1943,-29980,-29981,-29981,-29982,-29982,-29981,-29981,-29979]} 1. d4 {[%emt 0:00:03]} Nf6 {[%emt 0:00:04]} 2. c4 {[%emt 0:00:17]} e6 {[%emt 0:00:04]} 3. Nc3 {[%emt 0:00:08]} Bb4 {[%emt 0:00:05]} 4. Nf3 {[%emt 0:00:09]} O-O {[%emt 0:00:22]} 5. e3 {[%emt 0:00:21]} d5 {[%emt 0:02:40]} 6. Bd2 {[%emt 0:00:11]} Nbd7 {[%emt 0:00:18]} 7. cxd5 {[%emt 0:07:45] Recently 7.Rc1 got a lot of attention. E51: Nimzo-Indian: Rubinstein: 4...0-0 5 Nf3 d5.} exd5 {[%emt 0:00:06]} 8. Bd3 {[%emt 0:00:13]} c6 {[%emt 0:07:30]} 9. Qc2 {[%emt 0:01:19] The position is equal.} Re8 {[%emt 0:01:26]} 10. O-O {[%emt 0:08:27]} Bd6 {[%emt 0:02:28]} 11. Rfe1 {[%emt 0:01:11]} Nf8 {[%emt 0:04:31]} 12. e4 {[%emt 0:00:57]} dxe4 {[%emt 0:00:04]} 13. Nxe4 {[%emt 0:00:04]} Nxe4 {[%emt 0:00:03]} 14. Bxe4 {[%emt 0:00:15]} h6 {[%emt 0:03:46] Inhibits Ng5.} 15. Ne5 {[%emt 0:03:24]} Be6 {[%emt 0:00:38]} 16. Rad1 {[%emt 0:04:24] [#]} Qh4 $146 {[%emt 0:02:59]} (16... Bc7 $5 {[%cal Rd8d4]}) ({Predecessor:} 16... Bc7 17. a3 Qxd4 18. Bf4 Qb6 19. b4 Rad8 20. Bd3 Bb8 21. Re3 Rd4 22. Rf3 Rxf4 23. Rxf4 Bxe5 24. Re4 Qc7 25. Bc4 Bf5 {0-1 (25) Stepanov,A (1785)-Shikalov,R (2425) Dubna 2009}) 17. Bc3 {[%emt 0:03:58]} Rad8 {[%emt 0:05:48]} 18. g3 {[%emt 0:02:23]} Qh5 {[%emt 0:10:44]} 19. Bf3 {[%emt 0:07:27]} Qh3 {[%emt 0:00:07]} 20. Qe2 {[%emt 0:07:28]} a6 {[%emt 0:17:04]} 21. b3 {[%emt 0:00:11]} Bc7 {[%emt 0:03:18]} 22. Bg2 {[%emt 0:03:34]} Qf5 {[%emt 0:00:09]} 23. Be4 {[%emt 0:00:06]} Qh3 {[%emt 0:00:51]} 24. Bg2 {[%emt 0:09:09]} Qf5 {[%emt 0:00:05]} 25. Nc4 {[%emt 0:04:39]} Qb5 {[%emt 0:02:16]} 26. Qb2 {[%emt 0:03:21][%cal Od4d5]} Bg4 {[%emt 0:07:15]} 27. Rc1 {[%emt 0:00:41]} Rxe1+ {[%emt 0:07:09]} 28. Rxe1 {[%emt 0:00:08][%cal Oe1e5] [#] Threatens to win with Re5!} Qg5 {[%emt 0:01:35] Prevents Re5.} 29. h4 {[%emt 0:04:16]} Qh5 {[%emt 0:04:18]} 30. Re7 {[%emt 0:03:29]} Ne6 {[%emt 0:07:47]} 31. Nd2 {[%emt 0:10:39] Inhibits Bf3.} (31. Ne3 $11) 31... Qb5 {[%emt 0:02:37]} (31... Qf5 $17 32. f3 Bh3) 32. Ne4 {[%emt 0:06:56]} b6 $2 {[%emt 0:00:51]} (32... Qf5 $11) 33. a4 $2 {[%emt 0:06:11]} (33. f3 $16 {stays on course.} Bh5 34. g4) 33... Qd3 {[%emt 0:01:00]} ({Black should try} 33... Qh5 $17) 34. a5 {[%emt 0:00:45]} (34. d5 $1 $11 {keeps the balance.} cxd5 35. Bxg7 dxe4 36. Qf6) 34... Bf3 $17 {[%emt 0:01:11] Black is more active.} 35. Bxf3 {[%emt 0:00:11]} Qxf3 {[%emt 0:00:04]} 36. Qc2 {[%emt 0:01:40]} bxa5 {[%emt 0:01:11] Strongly threatening ...Kf8.} 37. Nc5 {[%emt 0:00:27]} Nxc5 {[%emt 0:01:18]} 38. Rxc7 {[%emt 0:00:05] Loses the game.} (38. dxc5 $17 {was necessary.} Bxg3 39. fxg3 Qxg3+ 40. Kf1) 38... Ne4 {[%emt 0:01:44]} 39. Be1 $2 {[%emt 0:00:36]} (39. Bxa5 Rxd4 40. Rc8+ Kh7 41. Rd8) 39... Rxd4 $19 {[%emt 0:00:10] ( -> ...Rd1)} 40. Re7 {[%emt 0:01:34]} f5 {[%emt 0:03:48]} (40... c5 $142 {White must now prevent ...f5.} 41. Re8+ Kh7 42. Rxe4 Qxe4 43. Qxe4+ Rxe4 44. Bxa5 Re2) 41. Kh2 $2 {[%emt 0:06:23]} (41. Qxc6 Rd1 42. Qe8+ Kh7 43. Rxg7+ Kxg7 44. Qe7+ Kg6 45. Qe8+ Kf6 46. Qf8+ Ke6 47. Qe8+ Kd5 48. Qd8+ Kc6 49. Qc8+ Kb6 50. Qb8+ Kc6 51. Qc8+ Kd5 52. Qd8+ Ke6 53. Qe8+ Kd6 54. Qd8+ Ke6 55. Qe8+) 41... c5 {[%emt 0:03:47]} ({Weaker is} 41... Rd1 42. Qc4+ Rd5 43. Qxc6 Nxf2 44. Qe8+ (44. Bxf2 Qxf2+ 45. Kh3 Qf1+ 46. Kh2 Rd2+) 44... Kh7 45. Rxg7+ Kxg7 46. Qe7+ Kg8 47. Qe8+ Kh7 48. Qf7+ Kh8 49. Qf8+ Kh7 50. Qf7+ Kh8 51. Qf8+ Kh7 52. Qf7+ $11) 42. Qb2 {[%emt 0:00:21]} Kh7 {[%emt 0:01:08]} 43. Rf7 {[%emt 0:01:18]} Kg6 {[%emt 0:03:35]} 44. Rf8 {[%emt 0:00:08] [#]} Rd2 $3 {[%emt 0:04:28][%mdl 512]} 45. Qe5 {[%emt 0:02:42]} (45. Qxd2 Nxd2) 45... Rxf2+ {[%emt 0:00:15] Black mates.} ({Resist} 45... Rd1 46. Qe8+ Kh7 47. Rh8#) 46. Bxf2 {[%emt 0:00:06]} Qxf2+ {[%emt 0:00:03]} 47. Kh3 {[%emt 0:00:05]} Qf1+ {[%emt 0:00:02]} 48. Kh2 {[%emt 0:00:06]} Qe2+ {[%emt 0:00:04] Weighted Error Value: White=0.72/Black=0.31} 0-1